[Event "Uralsk-ch Women 2019"]
[Site "Khanty-Mansiysk"]
[Date "2019.03.15"]
[Round "4.2"]
[White "Vinokur, Yuliya"]
[Black "Mukhina, Jana"]
[Result "0-1"]
[ECO "E92"]
[WhiteElo "2076"]
[BlackElo "2038"]
[Annotator "NA RC"]
[PlyCount "90"]
[EventDate "2019.03.15"]
[EventType "swiss"]
[EventCountry "RUS"]
[SourceTitle "playchess.com"]
[Source "ChessBase"]
[SourceQuality "1"]
[TimeControl "40/5400+30:1800+30"]

1. d4 {[%emt 0:00:00]} Nf6 {[%emt 0:00:24]} 2. c4 {[%emt 0:00:00]} g6 {[%emt 0:00:36]} 3. Nc3 {[%emt 0:00:13]} Bg7 {[%emt 0:00:08]} 4. e4 {[%emt 0:00:10]} d6 {[%emt 0:00:19]} 5. Be2 {[%emt 0:00:13]} O-O {[%emt 0:00:05]} 6. Nf3 {[%emt 0:00:13]} e5 {[%emt 0:00:24]} 7. d5 {[%emt 0:00:39]} a5 {[%emt 0:00:07]} 8. Bg5 {[%emt 0:00:25]} h6 {[%emt 0:00:29]} 9. Bh4 {[%emt 0:00:17]} g5 {[%emt 0:00:34]} 10. Bg3 {[%emt 0:00:09]} Nh5 {[%emt 0:00:11]} 11. h4 {[%emt 0:00:09] E92: King's Indian: Classical: 6 Be2 e5: 7 dxe5, 7 Be3 and Petrosian System without 7...Nbd7} g4 {[%emt 0:00:06]} 12. Nh2 {[%emt 0:00:21]} (12. Nd2 Nxg3 13. fxg3 h5 14. Qc2 Na6 15. O-O-O Qf6 16. Rhf1 Qh6 17. Kb1 Bd7 18. a3 a4 {0-1 (60) Aronian,L (2785)-Grischuk,A (2737) Doha 2016}) 12... Nxg3 {[%emt 0:00:15]} 13. fxg3 {[%emt 0:00:04]} h5 {[%emt 0:00:09]} 14. O-O {[%emt 0:00:51]} Na6 {[%emt 0:02:04]} 15. Bd3 {[%emt 0:03:56]} Nc5 {[%emt 0:03:40]} 16. Bc2 {[%emt 0:03:06]} Bd7 {[%emt 0:01:56]} 17. Qd2 {[%emt 0:07:48]} Qe7 {[%emt 0:14:56]} 18. Rf2 {[%emt 0:03:23]} f5 {[%emt 0:03:23]} 19. exf5 {[%emt 0:19:19]} e4 {[%emt 0:00:13]} 20. f6 $146 {[%emt 0:00:09]} ({Predecessor:} 20. Nf1 Bxf5 21. Ne3 Bg6 22. Raf1 Rxf2 23. Rxf2 {0-1 (46) Pereira Figueroa,M (2060)-Diaz Castro,S (2228) Dos Hermanas 2003}) 20... Rxf6 {[%emt 0:19:28]} 21. Qg5 {[%emt 0:06:44]} Re8 {[%emt 0:02:33]} 22. Re2 {[%emt 0:09:47]} Rf5 {[%emt 0:01:37]} 23. Qe3 {[%emt 0:01:11]} Re5 {[%emt 0:02:04]} 24. Rae1 {[%emt 0:00:53]} Bf5 {[%emt 0:02:14]} 25. Nf1 {[%emt 0:00:59]} Nd3 {[%emt 0:06:08]} 26. Rb1 {[%emt 0:01:51]} c5 {[%emt 0:00:27]} 27. dxc6 {[%emt 0:06:03]} bxc6 {[%emt 0:00:28]} 28. Ba4 {[%emt 0:00:04]} Qb7 {[%emt 0:08:06]} 29. Nd2 {[%emt 0:03:33]} R8e6 {[%emt 0:03:04]} 30. Qg5 {[%emt 0:07:45]} Qb6+ {[%emt 0:00:14]} 31. Kh2 {[%emt 0:01:54]} e3 {[%emt 0:04:21]} 32. c5 {[%emt 0:03:03]} Qxc5 {[%emt 0:02:02]} 33. Nc4 {[%emt 0:03:24]} Qxc4 {[%emt 0:01:47]} 34. Bb3 {[%emt 0:00:07]} Qc5 {[%emt 0:00:30]} 35. Bxe6+ {[%emt 0:04:00]} Bxe6 {[%emt 0:00:44]} 36. Qd8+ {[%emt 0:00:38]} Kh7 {[%emt 0:00:13]} 37. Rd1 {[%emt 0:01:03]} Bf5 {[%emt 0:00:15]} 38. Na4 {[%emt 0:00:46]} Qb4 {[%emt 0:01:27]} 39. Nb6 {[%emt 0:00:55]} d5 {[%emt 0:01:12]} 40. Nc8 {[%emt 0:02:49]} Qb8 {[%emt 0:01:30]} 41. Qb6 {[%emt 0:31:32]} Qxc8 {[%emt 0:31:57]} 42. Rxe3 $19 {[%emt 0:00:06]} Rxe3 {[%emt 0:00:22]} 43. Qxe3 {[%emt 0:00:02]} Qe6 {[%emt 0:01:10]} 44. Qg5 {[%emt 0:00:54]} Qg6 {[%emt 0:00:49]} 45. Qd8 {[%emt 0:00:10]} Nxb2 {[%emt 0:00:42]} 0-1

[Event "Uralsk-ch Women 2019"]
[Site "Khanty-Mansiysk"]
[Date "2019.03.16"]
[Round "5.1"]
[White "Mukhina, Jana"]
[Black "Kabanova, Ekaterina"]
[Result "1-0"]
[ECO "C07"]
[WhiteElo "2038"]
[BlackElo "2086"]
[Annotator "NA RC"]
[PlyCount "81"]
[EventDate "2019.03.12"]
[EventType "swiss"]
[EventCountry "RUS"]
[SourceTitle "playchess.com"]
[Source "ChessBase"]
[SourceQuality "1"]
[TimeControl "5400+30"]

1. e4 {[%emt 0:00:00]} e6 {[%emt 0:00:00]} 2. d4 {[%emt 0:00:00]} d5 {[%emt 0:00:00]} 3. Nd2 {[%emt 0:00:10]} c5 {[%emt 0:00:02]} 4. exd5 {[%emt 0:00:11]} Qxd5 {[%emt 0:00:04]} 5. dxc5 {[%emt 0:00:10]} Bxc5 {[%emt 0:01:01]} 6. Ngf3 {[%emt 0:00:13]} Nf6 {[%emt 0:00:13]} 7. Bc4 {[%emt 0:00:06]} Qc6 {[%emt 0:00:06] C07: French Tarrasch: 3...c5, 4 Ngf3 and 4 exd5 Qxd5} 8. O-O {[%emt 0:01:07]} (8. Qe2 O-O 9. O-O b6 10. Nb3 Bb7 11. Nxc5 Qxc5 12. b3 Nbd7 13. Bb2 Qh5 14. Ne5 Qxe2 15. Bxe2 Nxe5 16. Bxe5 {½-½ (68) Bruzon Batista,L (2653)-Lenderman,A (2626) Saint Louis 2018}) 8... Nbd7 {[%emt 0:00:06]} 9. Qe2 {[%emt 0:02:38]} O-O {[%emt 0:01:05]} 10. Nb3 {[%emt 0:04:43]} Bb6 {[%emt 0:02:04]} 11. Bf4 {[%emt 0:15:55]} a6 {[%emt 0:07:36]} 12. Rfe1 {[%emt 0:07:13]} e5 $146 {[%emt 0:12:55]} ({Predecessor:} 12... Bc7 13. Bd2 b5 14. Bd3 Nc5 15. Nxc5 Qxc5 {1-0 (39) Barbiso,T (1925)-Settis,M (2063) Turin 2009}) 13. Bg3 {[%emt 0:06:21]} Bc7 {[%emt 0:06:38]} 14. a4 {[%emt 0:11:10]} b6 {[%emt 0:09:08]} 15. Nfd2 {[%emt 0:04:01]} Bb7 {[%emt 0:05:53]} 16. Qf1 {[%emt 0:03:03]} Kh8 {[%emt 0:10:06]} 17. Be2 {[%emt 0:02:12]} Rfe8 {[%emt 0:09:13]} 18. c3 {[%emt 0:12:51]} Bd6 {[%emt 0:08:33]} 19. Nc4 {[%emt 0:04:58]} Bb8 {[%emt 0:05:41]} 20. Red1 {[%emt 0:03:17]} Qe6 {[%emt 0:00:25]} 21. Ncd2 {[%emt 0:08:21]} h6 {[%emt 0:06:20]} 22. h3 {[%emt 0:00:49]} Qf5 {[%emt 0:01:17]} 23. Nc4 $11 {[%emt 0:01:14]} Qe6 {[%emt 0:02:31]} 24. Ncd2 {[%emt 0:03:25]} Ra7 {[%emt 0:01:39]} 25. Re1 {[%emt 0:00:33]} Qf5 {[%emt 0:01:03]} 26. Bd3 {[%emt 0:00:49]} e4 {[%emt 0:01:55]} 27. Nd4 {[%emt 0:00:24]} Qg5 {[%emt 0:00:36]} 28. Bxb8 {[%emt 0:02:41]} Nxb8 {[%emt 0:00:07]} 29. f4 {[%emt 0:01:09]} Qg3 {[%emt 0:05:04]} 30. Bc2 {[%emt 0:00:43]} Qg6 {[%emt 0:01:03]} 31. N2f3 {[%emt 0:01:17]} Nbd7 {[%emt 0:00:30]} 32. Qf2 {[%emt 0:01:48]} Qh5 {[%emt 0:01:02]} 33. Nh4 {[%emt 0:00:41]} g6 {[%emt 0:01:17]} 34. Qg3 {[%emt 0:00:52]} Rg8 {[%emt 0:00:26]} 35. Bd1 {[%emt 0:00:43]} Qc5 {[%emt 0:00:01]} 36. b4 {[%emt 0:00:24]} Qd5 {[%emt 0:00:15]} 37. Bb3 {[%emt 0:00:14]} Qd6 {[%emt 0:00:41]} 38. Bxf7 {[%emt 0:00:31]} Rg7 {[%emt 0:00:16]} 39. Nxg6+ {[%emt 0:01:12]} Kh7 {[%emt 0:00:00]} 40. Nf5 {[%emt 0:00:13]} Qd3 {[%emt 0:00:01]} 41. Nf8+ {[%emt 0:00:40]} 1-0

[Event "Uralsk-ch Women 2019"]
[Site "Khanty-Mansiysk"]
[Date "2019.03.16"]
[Round "5.2"]
[White "Filippova, Darya"]
[Black "Ponomarenko, Valeria"]
[Result "1-0"]
[ECO "A43"]
[WhiteElo "2099"]
[BlackElo "1412"]
[Annotator "NA RC"]
[PlyCount "91"]
[EventDate "2019.03.12"]
[EventType "swiss"]
[EventCountry "RUS"]
[SourceTitle "playchess.com"]
[Source "ChessBase"]
[SourceQuality "1"]
[TimeControl "5400+30"]

1. d4 {[%emt 0:00:00]} c5 {[%emt 0:00:00]} 2. e3 {[%emt 0:00:00]} cxd4 {[%emt 0:00:07]} 3. exd4 {[%emt 0:00:00]} d5 {[%emt 0:00:29]} 4. g3 {[%emt 0:00:40] B13: Caro-Kann: Exchange Variation and Panov-Botvinnik Attack} (4. Bd3 Nc6 5. c3 Nf6 6. h3 g6 7. Nf3 Bf5 8. Be2 Bg7 9. O-O O-O 10. Bf4 Ne4 11. Nbd2 Re8 12. Re1 h6 13. Bf1 g5 14. Bh2 Qd7 15. Nxe4 Bxe4 {1-0 (35) Caruana,F (2828)-Shankland,S (2725) chess.com INT 2019}) 4... g6 {[%emt 0:01:01]} 5. Bg2 {[%emt 0:00:19]} Bg7 {[%emt 0:00:09]} 6. c3 {[%emt 0:00:50]} Nf6 {[%emt 0:01:17]} 7. f4 {[%emt 0:01:12]} O-O {[%emt 0:01:31]} 8. Nf3 {[%emt 0:01:03]} Nc6 {[%emt 0:01:38]} 9. Nbd2 $146 {[%emt 0:00:45]} ({Predecessor:} 9. O-O Bf5 10. Re1 Ne4 11. Nbd2 {½-½ (45) Katona,F (2253)-Akots,G (2250) Hungary 2010}) 9... Bf5 {[%emt 0:04:15]} 10. O-O {[%emt 0:00:48]} Qc8 {[%emt 0:03:58]} 11. Ne5 {[%emt 0:08:10]} Bh3 {[%emt 0:03:19]} 12. Qe2 {[%emt 0:01:55]} Bxg2 {[%emt 0:01:00]} 13. Kxg2 {[%emt 0:01:57]} Re8 {[%emt 0:02:13]} 14. Re1 {[%emt 0:01:03]} Nd7 {[%emt 0:05:38]} 15. Qg4 {[%emt 0:11:34]} Ndxe5 {[%emt 0:05:53]} 16. Qxc8 {[%emt 0:00:10]} Raxc8 {[%emt 0:00:14]} 17. fxe5 {[%emt 0:00:24]} f6 {[%emt 0:03:23]} 18. Nf3 {[%emt 0:05:01]} fxe5 {[%emt 0:06:12]} 19. dxe5 {[%emt 0:03:22]} e6 {[%emt 0:01:16]} 20. Bf4 {[%emt 0:07:35]} b5 {[%emt 0:07:23]} 21. a3 {[%emt 0:06:45]} a5 {[%emt 0:05:47]} 22. Re2 {[%emt 0:04:47]} h6 {[%emt 0:05:26]} 23. h4 {[%emt 0:00:21]} Red8 {[%emt 0:01:25]} 24. Be3 {[%emt 0:03:47]} Rd7 {[%emt 0:05:28]} 25. Rf1 {[%emt 0:03:33]} Kh7 {[%emt 0:03:31]} 26. Bd4 {[%emt 0:03:49]} Rf7 $2 {[%emt 0:05:41] [#]} (26... Rb7 $11) 27. Ng5+ $1 {[%emt 0:00:26] Discovered Attack} hxg5 {[%emt 0:03:56]} 28. Rxf7 {[%emt 0:00:08]} gxh4 {[%emt 0:01:00]} 29. gxh4 {[%emt 0:01:48]} Kg8 {[%emt 0:01:26]} 30. Rb7 {[%emt 0:02:37]} Rb8 {[%emt 0:03:02]} 31. Rxb8+ {[%emt 0:02:06]} Nxb8 {[%emt 0:00:08]} 32. Kf3 {[%emt 0:01:40]} Nc6 {[%emt 0:01:17]} 33. Kg4 {[%emt 0:00:51]} Ne7 $18 {[%emt 0:00:39]} 34. Kg5 {[%emt 0:01:24]} Kh7 {[%emt 0:01:24]} (34... Kf7 {keeps fighting.} 35. h5 gxh5 36. Kxh5 Nf5) 35. b3 {[%emt 0:00:29]} Nf5 {[%emt 0:02:01]} 36. a4 {[%emt 0:01:05]} bxa4 {[%emt 0:01:08]} 37. bxa4 {[%emt 0:00:09]} Ng3 {[%emt 0:00:21]} 38. Rb2 {[%emt 0:00:28]} Ne4+ {[%emt 0:01:29]} 39. Kg4 {[%emt 0:00:18]} Bh6 {[%emt 0:00:49]} 40. Rb5 {[%emt 0:02:04]} Bd2 {[%emt 0:00:12]} 41. Rxa5 {[%emt 0:00:40]} Nxc3 {[%emt 0:02:21]} 42. Bxc3 {[%emt 0:01:39]} Bxc3 {[%emt 0:00:02]} 43. Ra6 {[%emt 0:00:15]} Bxe5 {[%emt 0:00:33]} 44. Rxe6 {[%emt 0:00:08]} Bc3 {[%emt 0:00:17]} 45. Rd6 {[%emt 0:00:19]} d4 {[%emt 0:00:08]} 46. Rd5 {[%emt 0:00:14]} 1-0

[Event "Uralsk-ch Women 2019"]
[Site "Khanty-Mansiysk"]
[Date "2019.03.16"]
[Round "5.3"]
[White "Karelina, Viktoriya"]
[Black "Garifullina, Leya"]
[Result "1-0"]
[ECO "B90"]
[WhiteElo "1755"]
[BlackElo "2095"]
[Annotator "NA"]
[PlyCount "135"]
[EventDate "2019.03.12"]
[EventType "swiss"]
[EventCountry "RUS"]
[SourceTitle "playchess.com"]
[Source "ChessBase"]
[SourceQuality "1"]
[TimeControl "5400+30"]

1. e4 {[%emt 0:00:00]} c5 {[%emt 0:00:00]} 2. Nf3 {[%emt 0:00:00]} d6 {[%emt 0:00:00]} 3. d4 {[%emt 0:00:00]} cxd4 {[%emt 0:00:33]} 4. Nxd4 {[%emt 0:00:00]} Nf6 {[%emt 0:00:19]} 5. Nc3 {[%emt 0:00:02]} a6 {[%emt 0:00:16]} 6. Nb3 {[%emt 0:00:07]} e5 {[%emt 0:00:29]} 7. Bg5 {[%emt 0:00:15]} Be6 {[%emt 0:00:25] B94: Sicilian Najdorf: 6 Bg5 Nbd7} 8. Qd3 {[%emt 0:09:18]} (8. f4 exf4 9. Qd2 Be7 10. O-O-O Bxb3 11. cxb3 Nc6 12. Bxf4 O-O 13. Bxd6 Bxd6 14. Qxd6 Qa5 15. Be2 {½-½ (76) Kryvoruchko,Y (2695)-Abdusattorov,N (2558) Batumi 2018}) 8... Nbd7 {[%emt 0:05:01]} 9. Be2 {[%emt 0:14:05]} h6 {[%emt 0:05:45]} 10. Bxf6 {[%emt 0:00:32]} Nxf6 {[%emt 0:00:38]} 11. O-O-O $146 {[%emt 0:00:26]} ({Predecessor:} 11. Qg3 b5 12. a3 Qc7 13. Nd2 d5 14. exd5 Nxd5 15. Nxd5 Bxd5 16. O-O {0-1 (34) Jagodzinska,J (2145)-Wierzbicka,E (2030) Konin 1990}) 11... Be7 {[%emt 0:01:11]} 12. Kb1 {[%emt 0:05:15]} Rc8 {[%emt 0:02:24]} 13. h4 {[%emt 0:08:28]} h5 {[%emt 0:10:30]} 14. f3 {[%emt 0:08:32]} Qd7 {[%emt 0:08:46]} 15. Qe3 {[%emt 0:05:53]} Qc6 {[%emt 0:07:00]} 16. Rd2 {[%emt 0:09:37]} b5 {[%emt 0:12:51]} 17. a3 {[%emt 0:01:50]} Qc7 {[%emt 0:05:56]} 18. Qf2 {[%emt 0:06:36]} Rb8 {[%emt 0:03:25]} 19. g4 {[%emt 0:05:50]} ({White should try} 19. Nd5 $15 Bxd5 20. exd5) 19... Nd7 {[%emt 0:10:28]} 20. f4 {[%emt 0:04:06]} hxg4 {[%emt 0:01:58]} 21. f5 {[%emt 0:01:51]} Bc4 {[%emt 0:00:18]} 22. Bxg4 {[%emt 0:01:42]} Nf6 {[%emt 0:00:46]} 23. Be2 {[%emt 0:02:02]} a5 {[%emt 0:01:45]} 24. Qg2 {[%emt 0:08:39]} a4 {[%emt 0:01:22]} 25. Nc1 $1 {[%emt 0:02:58]} b4 $1 {[%emt 0:01:15]} 26. axb4 {[%emt 0:00:02]} Rxb4 {[%emt 0:00:11]} 27. N1a2 {[%emt 0:04:18]} ({Not} 27. Qxg7 $2 Rg8 $19) (27. Bxc4 $15 Qxc4 28. N1a2) 27... Rb8 {[%emt 0:02:05]} 28. Nxa4 {[%emt 0:00:31]} Bxa2+ {[%emt 0:02:20]} 29. Kxa2 {[%emt 0:00:01]} Qa5 {[%emt 0:00:20]} 30. b3 {[%emt 0:00:25]} Nd7 {[%emt 0:00:33]} 31. Rd5 {[%emt 0:00:24]} Nc5 {[%emt 0:02:53]} 32. Qxg7 {[%emt 0:00:05]} Rf8 {[%emt 0:00:11]} 33. f6 {[%emt 0:01:01]} Bd8 {[%emt 0:00:24]} 34. h5 $2 {[%emt 0:00:28]} (34. Bc4) 34... Qa8 {[%emt 0:01:58]} 35. Rxc5 {[%emt 0:00:56]} dxc5 {[%emt 0:00:17]} 36. Bd3 $2 {[%emt 0:01:03]} (36. Bc4 Qc6 37. Rf1) 36... Qc6 {[%emt 0:02:02]} (36... Rb4 $142) 37. Rf1 {[%emt 0:00:20]} Ba5 $2 {[%emt 0:02:11]} (37... c4) 38. h6 {[%emt 0:00:25]} Kd7 {[%emt 0:00:48]} 39. h7 {[%emt 0:00:22]} Ra8 {[%emt 0:00:37]} 40. Rd1 {[%emt 0:00:58]} Kc7 {[%emt 0:00:13]} 41. h8=Q {[%emt 0:00:32]} Rxh8 {[%emt 0:02:25]} 42. Qxf7+ {[%emt 0:00:01]} Kb8 {[%emt 0:00:25]} 43. Qg7 {[%emt 0:00:46]} Rc8 {[%emt 0:00:38]} 44. Kb2 $2 {[%emt 0:00:35]} (44. Kb1 $18 {is the precise move to win.}) 44... c4 {[%emt 0:03:12]} 45. Bxc4 {[%emt 0:00:23]} Bb4 {[%emt 0:00:41]} 46. Rd5 {[%emt 0:00:43]} Rxa4 $2 {[%emt 0:04:03]} (46... Ra7) 47. bxa4 {[%emt 0:00:19]} Rc7 {[%emt 0:00:25]} 48. Qg8+ {[%emt 0:00:45]} Ka7 {[%emt 0:00:31]} 49. Rb5 {[%emt 0:00:28]} Bc3+ {[%emt 0:00:32]} 50. Kxc3 {[%emt 0:00:22]} Rc8 {[%emt 0:00:39]} 51. Qd5 {[%emt 0:00:28]} Qa6 {[%emt 0:00:49]} 52. Qd7+ {[%emt 0:00:28]} Ka8 {[%emt 0:00:03]} 53. Rb8+ {[%emt 0:00:41]} Kxb8 {[%emt 0:00:08]} 54. Qb5+ {[%emt 0:00:25]} Qb7 {[%emt 0:01:17]} 55. Qxb7+ {[%emt 0:00:02]} Kxb7 {[%emt 0:00:04]} 56. a5 {[%emt 0:00:14]} Kc6 {[%emt 0:00:14]} 57. a6 {[%emt 0:00:14]} Kb6 {[%emt 0:00:12]} 58. f7 {[%emt 0:00:11]} Kc5 {[%emt 0:00:23]} 59. Kd3 {[%emt 0:00:25]} Rd8+ {[%emt 0:00:07]} 60. Kc3 {[%emt 0:00:41]} Rc8 {[%emt 0:00:03]} 61. Be6 {[%emt 0:00:36]} Rd8 {[%emt 0:00:15]} 62. Bd7 {[%emt 0:00:26]} Rf8 {[%emt 0:00:05]} 63. Be8 {[%emt 0:00:06]} Kb6 {[%emt 0:00:41]} 64. Kc4 {[%emt 0:00:07]} Rh8 {[%emt 0:01:13]} 65. Kd5 {[%emt 0:00:11]} Kxa6 {[%emt 0:00:25]} 66. Ke6 {[%emt 0:00:07]} Kb6 {[%emt 0:00:42]} 67. Ke7 {[%emt 0:00:03]} Rh7 {[%emt 0:00:03]} 68. Kf6 {[%emt 0:00:03]} 1-0

[Event "Uralsk-ch Women 2019"]
[Site "Khanty-Mansiysk"]
[Date "2019.03.17"]
[Round "6.1"]
[White "Filippova, Darya"]
[Black "Mukhina, Jana"]
[Result "1/2-1/2"]
[ECO "E92"]
[WhiteElo "2099"]
[BlackElo "2038"]
[Annotator "NA"]
[PlyCount "119"]
[EventDate "2019.03.12"]
[EventType "swiss"]
[EventCountry "RUS"]
[SourceTitle "playchess.com"]
[Source "ChessBase"]
[SourceQuality "1"]
[TimeControl "5400+30"]

1. Nf3 {[%emt 0:00:00]} Nf6 {[%emt 0:00:00]} 2. c4 {[%emt 0:00:00]} g6 {[%emt 0:00:00]} 3. Nc3 {[%emt 0:00:00]} Bg7 {[%emt 0:00:00]} 4. e4 {[%emt 0:00:04]} d6 {[%emt 0:00:03]} 5. d4 {[%emt 0:00:06]} O-O {[%emt 0:00:15]} 6. Be2 {[%emt 0:01:35]} e5 {[%emt 0:00:42]} 7. dxe5 {[%emt 0:01:00]} dxe5 {[%emt 0:00:08]} 8. Qxd8 {[%emt 0:00:07]} Rxd8 {[%emt 0:00:05]} 9. Bg5 {[%emt 0:01:12]} Re8 {[%emt 0:00:21]} 10. Nd5 {[%emt 0:00:50]} Nxd5 {[%emt 0:00:08]} 11. cxd5 {[%emt 0:00:11]} c6 {[%emt 0:02:31]} 12. Bc4 {[%emt 0:01:15]} cxd5 {[%emt 0:08:01]} 13. Bxd5 {[%emt 0:00:15]} Na6 {[%emt 0:01:55]} 14. Ke2 {[%emt 0:03:39]} Nb4 {[%emt 0:01:55]} 15. Bb3 {[%emt 0:03:16] E92: King's Indian: Classical: 6 Be2 e5: 7 dxe5, 7 Be3 and Petrosian System without 7...Nbd7} Bd7 {[%emt 0:08:44]} (15... Be6 16. Bxe6 Rxe6 17. a3 Nc6 18. Rhd1 f5 19. Be3 Nd4+ 20. Kf1 fxe4 21. Nxd4 exd4 22. Bxd4 Bxd4 23. Rxd4 e3 24. Re1 Rf8 25. Re2 Rxf2+ 26. Rxf2 exf2 27. Kxf2 Re7 {½-½ (27) Mirzoev,A (2543)-Movsziszian,K (2456) Ibiza 2006}) 16. Nd2 {[%emt 0:12:49]} Bb5+ $146 {[%emt 0:04:45]} ({Predecessor:} 16... Nc6 17. Be3 Nd4+ 18. Bxd4 exd4 19. Kd3 Bc6 20. Rac1 Bh6 21. f3 Rac8 22. Rc2 Kf8 {½-½ (30) Hallekamp,G-Schulze,I (2049) Stade 2000}) 17. Bc4 {[%emt 0:05:14]} Bxc4+ {[%emt 0:06:51]} 18. Nxc4 {[%emt 0:00:08]} Nc2 {[%emt 0:05:39]} 19. Rac1 {[%emt 0:01:12]} Nd4+ {[%emt 0:00:02]} 20. Kd1 {[%emt 0:02:37]} b5 {[%emt 0:04:52]} 21. Nd6 {[%emt 0:07:16]} Re6 $15 {[%emt 0:00:41]} 22. Nb7 {[%emt 0:01:17]} Ra6 {[%emt 0:10:52]} 23. a3 {[%emt 0:08:05]} Bf8 {[%emt 0:12:57]} 24. Be3 {[%emt 0:02:09]} b4 {[%emt 0:10:21]} 25. Bxd4 {[%emt 0:02:07]} exd4 {[%emt 0:01:25]} 26. axb4 {[%emt 0:03:18]} Bxb4 {[%emt 0:00:36]} 27. Nc5 {[%emt 0:00:09]} Bxc5 {[%emt 0:04:01]} 28. Rxc5 {[%emt 0:00:02]} Ra1+ {[%emt 0:00:48]} 29. Rc1 {[%emt 0:00:08]} Ra2 {[%emt 0:00:09]} 30. Kc2 {[%emt 0:04:27]} Rb8 {[%emt 0:00:05]} 31. Rb1 {[%emt 0:00:06]} a5 {[%emt 0:00:37]} 32. Rhd1 {[%emt 0:04:18]} a4 {[%emt 0:00:01]} 33. Rd3 {[%emt 0:04:59]} a3 {[%emt 0:00:25]} 34. Rb3 {[%emt 0:07:19]} Rc8+ {[%emt 0:06:57]} 35. Kd3 {[%emt 0:00:57]} axb2 {[%emt 0:00:56]} 36. R1xb2 {[%emt 0:00:19]} Ra4 {[%emt 0:02:30]} 37. Rb4 {[%emt 0:01:37]} Rxb4 {[%emt 0:02:13]} 38. Rxb4 {[%emt 0:00:07]} Rc1 {[%emt 0:00:03]} 39. h4 {[%emt 0:02:07]} h5 {[%emt 0:02:23]} 40. Rxd4 {[%emt 0:00:38]} Rg1 {[%emt 0:00:14]} 41. g3 {[%emt 0:00:09]} Ra1 {[%emt 0:00:10]} 42. Ke3 {[%emt 0:02:15]} Kg7 {[%emt 0:00:14]} 43. Kf4 {[%emt 0:02:12]} Ra2 {[%emt 0:00:19]} 44. f3 {[%emt 0:01:04]} Ra6 {[%emt 0:00:14]} 45. Ke3 {[%emt 0:01:12]} Ra1 {[%emt 0:00:31]} 46. f4 {[%emt 0:00:38]} Rg1 {[%emt 0:00:23]} 47. Kf2 {[%emt 0:00:08]} Ra1 {[%emt 0:00:14]} 48. Rd3 {[%emt 0:00:30]} Ra4 {[%emt 0:00:24]} 49. Ke3 {[%emt 0:00:25]} Rb4 {[%emt 0:00:12]} 50. Kf3 {[%emt 0:02:24]} Rb1 {[%emt 0:00:14]} 51. Re3 {[%emt 0:00:57]} Rf1+ {[%emt 0:01:01]} 52. Ke2 {[%emt 0:00:20]} Ra1 {[%emt 0:00:04]} 53. Rf3 {[%emt 0:01:23]} Ra2+ {[%emt 0:00:11]} 54. Ke3 {[%emt 0:00:14]} Ra3+ {[%emt 0:00:05]} 55. Kf2 {[%emt 0:00:10]} Ra2+ {[%emt 0:00:03]} 56. Kf1 {[%emt 0:00:22]} Ra1+ {[%emt 0:00:07]} 57. Kg2 {[%emt 0:00:06]} Re1 {[%emt 0:00:39]} 58. e5 {[%emt 0:00:09]} Ra1 {[%emt 0:01:47]} 59. f5 {[%emt 0:00:57]} Re1 {[%emt 0:02:50]} 60. fxg6 1/2-1/2

[Event "Uralsk-ch Women 2019"]
[Site "Khanty-Mansiysk"]
[Date "2019.03.17"]
[Round "6.2"]
[White "Kabanova, Ekaterina"]
[Black "Karelina, Viktoriya"]
[Result "1-0"]
[ECO "A48"]
[WhiteElo "2086"]
[BlackElo "1755"]
[Annotator "NA"]
[PlyCount "49"]
[EventDate "2019.03.12"]
[EventType "swiss"]
[EventCountry "RUS"]
[SourceTitle "playchess.com"]
[Source "ChessBase"]
[SourceQuality "1"]
[TimeControl "5400+30"]

1. d4 {[%emt 0:02:13]} Nf6 {[%emt 0:00:00]} 2. Nf3 {[%emt 0:00:34]} g6 {[%emt 0:00:00]} 3. Nc3 {[%emt 0:00:12]} d5 {[%emt 0:00:00]} 4. Bf4 {[%emt 0:00:15]} Bg7 {[%emt 0:03:22]} 5. e3 {[%emt 0:02:37]} O-O {[%emt 0:00:08]} 6. Be2 {[%emt 0:00:36]} b6 {[%emt 0:14:59]} 7. Ne5 {[%emt 0:03:09]} Bb7 {[%emt 0:04:41]} 8. h4 {[%emt 0:00:36]} c5 {[%emt 0:07:59]} 9. h5 {[%emt 0:02:25]} Nc6 {[%emt 0:05:02]} 10. hxg6 {[%emt 0:06:25]} fxg6 {[%emt 0:00:29]} 11. Bg4 {[%emt 0:07:28]} Nxg4 {[%emt 0:05:17]} 12. Qxg4 {[%emt 0:00:47]} Nxe5 {[%emt 0:00:41]} 13. Bxe5 $14 {[%emt 0:03:34]} Bf6 {[%emt 0:23:30]} 14. Qe6+ {[%emt 0:05:05]} Rf7 {[%emt 0:07:10]} 15. Rxh7 {[%emt 0:02:43]} Qe8 {[%emt 0:02:07]} 16. Rh6 {[%emt 0:04:15]} Qc8 {[%emt 0:08:11]} 17. Rxg6+ {[%emt 0:02:03]} Kf8 {[%emt 0:00:11]} 18. Qxc8+ {[%emt 0:02:10]} Rxc8 19. Bxf6 {[%emt 0:00:14]} Rxf6 {[%emt 0:01:25]} 20. Rxf6+ {[%emt 0:00:05]} exf6 {[%emt 0:00:04]} 21. Ke2 {[%emt 0:01:10]} cxd4 {[%emt 0:01:18]} 22. exd4 {[%emt 0:00:01]} Ke7 {[%emt 0:00:07]} 23. Rh1 {[%emt 0:00:17]} Ba6+ {[%emt 0:02:05]} 24. Ke3 {[%emt 0:01:38]} Kd6 {[%emt 0:00:05]} 25. Rh5 {[%emt 0:00:39]} 1-0

[Event "Uralsk-ch Women 2019"]
[Site "Khanty-Mansiysk"]
[Date "2019.03.17"]
[Round "6.3"]
[White "Ilona, Beliakova"]
[Black "Semenova, Elena"]
[Result "0-1"]
[ECO "E10"]
[WhiteElo "1699"]
[BlackElo "2238"]
[Annotator "NA"]
[PlyCount "66"]
[EventDate "2019.03.12"]
[EventType "swiss"]
[EventCountry "RUS"]
[SourceTitle "playchess.com"]
[Source "ChessBase"]
[SourceQuality "1"]
[TimeControl "5400+30"]

1. d4 {[%emt 0:00:00]} Nf6 {[%emt 0:00:00]} 2. c4 {[%emt 0:00:00]} e6 {[%emt 0:00:00]} 3. Nf3 {[%emt 0:00:02]} d5 {[%emt 0:00:04]} 4. g3 {[%emt 0:01:04]} dxc4 {[%emt 0:00:44]} 5. Qa4+ {[%emt 0:01:23]} Nbd7 {[%emt 0:00:24]} 6. Qxc4 {[%emt 0:00:16]} a6 {[%emt 0:00:25]} 7. a4 {[%emt 0:12:13]} c5 {[%emt 0:04:53]} 8. dxc5 {[%emt 0:04:25]} Bxc5 {[%emt 0:03:54]} 9. Bg2 {[%emt 0:04:38] [#]} b5 $1 {[%emt 0:03:14]} 10. Qc2 {[%emt 0:04:12]} Bb7 {[%emt 0:00:22]} 11. O-O {[%emt 0:01:53]} O-O {[%emt 0:12:00]} 12. Bg5 {[%emt 0:03:41]} Rc8 {[%emt 0:03:37]} 13. Qd2 {[%emt 0:06:09]} h6 {[%emt 0:15:08]} 14. Bxf6 {[%emt 0:04:14]} Nxf6 {[%emt 0:00:12]} ({Much worse is} 14... gxf6 $6 15. Qxh6 Bxf3 16. Bxf3 $16) 15. axb5 {[%emt 0:00:08]} axb5 $15 {[%emt 0:01:29]} 16. Qa5 {[%emt 0:16:46]} Qb6 {[%emt 0:10:43]} 17. b4 {[%emt 0:09:00]} Qxa5 {[%emt 0:16:20]} 18. Rxa5 {[%emt 0:01:05]} Be7 {[%emt 0:00:04]} 19. Rxb5 {[%emt 0:03:00]} Ba6 {[%emt 0:00:03]} 20. Rb6 {[%emt 0:00:52]} Bxe2 {[%emt 0:00:37]} 21. Re1 {[%emt 0:00:15]} Nd5 {[%emt 0:01:28]} 22. Rb7 {[%emt 0:02:20]} Ba6 {[%emt 0:01:07]} 23. Ra7 {[%emt 0:03:04]} Bxb4 {[%emt 0:00:33]} 24. Nbd2 {[%emt 0:02:14]} Bd3 {[%emt 0:01:24]} 25. Rea1 {[%emt 0:01:28]} Bc3 {[%emt 0:03:51]} 26. R1a3 {[%emt 0:02:33]} Be2 {[%emt 0:00:36]} 27. Bf1 {[%emt 0:00:57]} Bxf1 {[%emt 0:05:58]} 28. Kxf1 {[%emt 0:00:15]} Bb4 {[%emt 0:00:22]} 29. Rb3 {[%emt 0:01:05]} Rc2 {[%emt 0:00:48]} 30. Ke2 {[%emt 0:04:24]} Rd8 {[%emt 0:02:11]} 31. Kd1 {[%emt 0:00:50]} Rcc8 {[%emt 0:00:44]} 32. Ke1 {[%emt 0:01:11]} Rc1+ {[%emt 0:00:15]} 33. Ke2 {[%emt 0:00:08]} Nc3+ {[%emt 0:00:45] Ra6} 0-1